Cogmind - Beta 17 @@@ ROGUE MODE // 2026.07.04 @ 20:05:33 Player: Scarlet Result: Destroyed by L-31 Rogue with Katana Performance ------------- Evolutions (1) 500 Regions Visited (4) 800 Robots Destroyed (11) 55 Value Destroyed (301) 301 Prototype IDs (3) 60 Alien Tech Used (0) 0 Bonus (333) 333 TOTAL SCORE: 2049 Bonus ------- Pacifist 200 Follower Combat Kills 133 Cogmind --------- Core Integrity 0/400 Matter 300/300 Energy 100/100 System Corruption 6% Temperature Warm (106) Movement Core (350) Ox6 Location -9/Storage Parts ------- > --- POWER (1) -------- (None) > --- PROPULSION (4) --- (None) > --- UTILITY (2) ------ Large Storage Unit > --- WEAPON (2) ------- (None) > --- INVENTORY (15) --- Light Ion Engine Aluminum Leg Aluminum Leg Medium Matter Pod (100) Improved Targeting Computer Light Armor Plating Faulty Improved EM Shotgun Peak State ------------ > --- POWER ------------ Cooled Ion Engine > --- PROPULSION ------- Aluminum Leg Aluminum Leg Improved Aluminum Leg Carbon-fiber Leg > --- UTILITY ---------- Large Storage Unit Visual Processing Unit > --- WEAPON ----------- Improved EM Shotgun Improved Assault Rifle > --- INVENTORY -------- Light Ion Engine Aluminum Leg Aluminum Leg Medium Matter Pod Improved Targeting Computer Light Armor Plating Assault Rifle Assault Rifle [Rating: 19] Favorites ----------- Power Cooled Ion Engine Engine Cooled Ion Engine Propulsion Aluminum Leg Leg Aluminum Leg Utility Visual Processing Unit Storage Large Storage Unit Processor Visual Processing Unit Weapon Assault Rifle Energy Gun Improved EM Shotgun Ballistic Gun Assault Rifle Launcher Grenade Launcher Build | -11 -10 -10 -9 -9 ------- Run | Yrd Mat Min Mat Sto Slots Evolved 2 | . . . 2 . Power . | . . . . . Propulsion 2 | . . . 2 . Utility . | . . . . . Weapon . | . . . . . Parts Attached 16 | 6 3 . 5 2 Power 2 | 1 . . 1 . Engine 2 | 1 . . 1 . Core . | . . . . . Reactor . | . . . . . Propulsion 6 | 2 . . 3 1 Treads . | . . . . . Leg 6 | 2 . . 3 1 Wheel . | . . . . . Hover . | . . . . . Flight . | . . . . . Utility 3 | 1 2 . . . Device . | . . . . . Storage 2 | 1 1 . . . Processor 1 | . 1 . . . Hackware . | . . . . . Protection . | . . . . . Artifact . | . . . . . Weapon 5 | 2 1 . 1 1 Energy Gun 1 | . . . . 1 Energy Cannon . | . . . . . Ballistic Gun 3 | 2 . . 1 . Ballistic Cannon . | . . . . . Launcher 1 | . 1 . . . Special Weapon . | . . . . . Impact Weapon . | . . . . . Slashing Weapon . | . . . . . Piercing Weapon . | . . . . . Special Melee Weapon . | . . . . . Unidentified Prototypes 3 | . . . 2 1 Parts Lost 8 | . . . 1 7 Power 1 | . . . . 1 Propulsion 4 | . . . . 4 Utility 1 | . . . . 1 Weapon 2 | . . . 1 1 Highest Loss Streak 4 | . . . 1 4 To Critical Strikes . | . . . . . Average Backups 3 | . . 2 3 6 Power . | . . . . 1 Propulsion . | . . . . 1 Utility 1 | . . 1 1 2 Weapon . | . . 1 1 1 Tool/Special . | . . . . . Unused Backups 3 | . . . 1 2 Power 1 | . . . 1 . Propulsion . | . . . . . Utility 2 | . . . . 2 Weapon . | . . . . . Tool/Special . | . . . . . Average Slot Usage (%) 87 | . 95 100 81 85 Engine 11 | . 14 14 11 7 Leg 30 | . 28 28 27 39 Storage 11 | . 14 14 11 11 Processor 10 | . 10 14 11 10 Ballistic Gun 17 | . 24 14 14 15 Launcher 5 | . 3 14 7 . Peak Build Rating 19 | 6 8 8 15 19 Average Rating 10 | 4 7 8 12 13 On Entrance 7 | . 6 8 8 15 Avg Prop Armor Cover (%) 12 | . . . . 12 Naked Turns . | . . . . . Heaviest Build 34 | 12 28 28 34 33 Greatest Support 48 | 20 20 20 43 48 Greatest Overweight (x) 6 | 1 1 1 1 6 Average Overweight (x) . | . . 1 . . Largest Inventory Capacity 15 | 8 15 15 15 15 Average Capacity 13 | 7 9 15 15 15 Most Carried 8 | . 3 2 5 8 Average Carried 3 | . . 2 3 6 Final Capacity 15 | 8 15 15 15 15 Final Carried 7 | . 2 2 5 7 Class Distribution -------------------- 69% | Mutant 30% | Scavenger-Mutant Dominant Class ---------------- Mutant | -10/Materials Mutant | -10/Mines Mutant | -9/Materials Scavenger-Mutant | -9/Storage Resources | -11 -10 -10 -9 -9 ----------- Run | Yrd Mat Min Mat Sto Matter Collected 653 | 220 24 . 353 56 Remotely . | . . . . . Salvage Created 485 | . . . 394 91 Parts 20 | . . . 17 3 Haulers Intercepted 1 | . . . 1 . Recyclers Shooed 1 | . . . 1 . Parts Field Recycled . | . . . . . Retrieved Matter . | . . . . . Parts Self-Destructed . | . . . . . Prevented . | . . . . . Parts Restored . | . . . . . Kills | -11 -10 -10 -9 -9 ------- Run | Yrd Mat Min Mat Sto Combat Hostiles Destroyed 7 | . . . 5 2 Guns 6 | . . . 4 2 AOE 1 | . . . 1 . Classes Destroyed 6 | . . . 6 . Worker 1 | . . . 1 . Hauler 1 | . . . 1 . Recycler 2 | . . . 2 . Grunt 4 | . . . 2 2 Duelist 1 | . . . 1 . Sentry 2 | . . . 2 . Best Kill Streak 4 | . . . 4 1 Combat Bots Only 3 | . . . 3 1 Max Kills in Single Turn 1 | . . . 1 1 Gunslinging . | . . . . . Exploded 1 | . . . 1 . Melee . | . . . . . Uniques/NPCs Destroyed . | . . . . . Combat | -11 -10 -10 -9 -9 -------- Run | Yrd Mat Min Mat Sto Hostile Shots Fired 107 | . . . 44 63 Missed 28 | . . . 17 11 Hits 79 | . . . 27 52 Melee 12 | . . . . 12 Projectile 67 | . . . 27 40 Critical Strikes 5 | . . . . 5 Damage Taken 1372 | . 19 . 383 970 Core 432 | . 9 . 65 358 Absorbed by Shields . | . . . . . Core Remaining (%) 98 | 100 . 96 . . Volleys Fired 28 | . . . 21 7 Largest 2 | . . . 2 2 Hottest 53 | . . . 53 43 Shots Fired 53 | . . . 39 14 Gun 47 | . . . 33 14 Cannon . | . . . . . Launcher 6 | . . . 6 . Special . | . . . . . Kinetic 47 | . . . 33 14 Thermal . | . . . . . Explosive 6 | . . . 6 . Electromagnetic . | . . . . . Robot Hit Streak 13 | . . . 10 13 Robot Miss Streak 2 | . . . 2 1 Penetration Max . | . . . . . Secondary Targets 1 | . . . . 1 Max Gunslinging Chain 1 | . . . . 1 Shots Hit Robots 41 | . . . 28 13 Core Hits 27 | . . . 19 8 Critical Kills . | . . . . . Critical Parts Destroyed . | . . . . . Critical Strikes . | . . . . . Melee Attacks . | . . . . . Impact . | . . . . . Slashing . | . . . . . Piercing . | . . . . . Sneak Attacks . | . . . . . Combat Hostiles . | . . . . . Follow-up Attacks . | . . . . . Damage Inflicted 716 | 6 . . 518 192 Guns 513 | . . . 334 179 Cannons . | . . . . . Explosions 180 | . . . 180 . Melee . | . . . . . Ramming 23 | 6 . . 4 13 Kinetic 513 | . . . 334 179 Thermal . | . . . . . Explosive 180 | . . . 180 . Electromagnetic . | . . . . . Impact . | . . . . . Slashing . | . . . . . Piercing . | . . . . . Highest Corruption 6 | . . . . 6 Average Corruption 2 | . . . . 2 Corruption Purged . | . . . . . Corruption Blocked . | . . . . . Effects 2 | . . . . 2 Heat Flow Errors 1 | . . . . 1 Data Loss (minor) 1 | . . . . 1 Overload Shots . | . . . . . Overflow Damage . | . . . . . Projectiles . | . . . . . Explosions . | . . . . . Melee . | . . . . . Knockbacks . | . . . . . Impact . | . . . . . Kinetic . | . . . . . Secondary . | . . . . . Self-Inflicted Damage 35 | . . . 35 . Shots 1 | . . . 1 . Rammed 1 | . . . . 1 Targets Rammed 10 | 2 . . 1 7 Kicked 9 | 2 . . 1 6 Crushed . | . . . . . Highest Temperature 215 | . . . 4 215 Average Temperature 97 | . . . 2 139 Received Heat Transfer 465 | . 12 . 129 324 Siege Activations . | . . . . . Martial Activations . | . . . . . Shielding Activations . | . . . . . Robots Disrupted . | . . . . . Combat Hostiles . | . . . . . Robots Corrupted . | . . . . . Combat Hostiles . | . . . . . Parts Fried . | . . . . . Impact Corruptions . | . . . . . Robots Melted . | . . . . . Combat Hostiles . | . . . . . Parts Melted . | . . . . . Heat Transferred . | . . . . . Parts Sabotaged . | . . . . . Parts Stolen . | . . . . . Parts Stripped . | . . . . . Power Chain Reactions . | . . . . . Alert | -11 -10 -10 -9 -9 ------- Run | Yrd Mat Min Mat Sto Maximum Alert Level . | . . . . . Low Security (%) 100 | 100 100 100 100 100 Level 1 . | . . . . . Level 2 . | . . . . . Level 3 . | . . . . . Level 4 . | . . . . . Level 5 . | . . . . . High Security . | . . . . . Max Security . | . . . . . Peak Influence 114 | . . . 90 114 Initial 33 | . . . . 33 Average 25 | . . . 30 55 Influence Increases 357 | . . . 186 171 Destroy 0b10 Robot/C 240 | . . . 100 140 Destroy 0b10 Robot/NC 20 | . . . 20 . Destroy Leader 52 | . . . 32 20 Allied During Kill 11 | . . . . 11 Destroy Structure 34 | . . . 34 . Influence Decreases 343 | . . . 106 237 Entered New Map 47 | . . . . 47 Time Decay 176 | . . . 96 80 Lost Part 80 | . . . 10 70 Lost Ally 40 | . . . . 40 Squads Dispatched 3 | . 1 . . 2 Investigation 1 | . 1 . . . Extermination . | . . . . . Reinforcement . | . . . . . Assault 2 | . . . . 2 Garrison . | . . . . . Intercept . | . . . . . Searches Triggered . | . . . . . Construction Impeded . | . . . . . Haulers Reinforced . | . . . . . Active Scanning Responses . | . . . . . Cargo Convoy Interrupts . | . . . . . Stealth | -11 -10 -10 -9 -9 --------- Run | Yrd Mat Min Mat Sto Distress Signals . | . . . . . Communications Jammed . | . . . . . Distress Signals . | . . . . . Times Spotted 23 | . 1 1 5 16 Peak Tracking Total 11 | . 1 2 3 11 Tactical Retreats . | . . . . . Traps | -11 -10 -10 -9 -9 ------- Run | Yrd Mat Min Mat Sto Traps Triggered 1 | . 1 . . . Indirectly . | . . . . . Trap Hack Attempts . | . . . . . Triggered . | . . . . . Disarmed . | . . . . . Reprogrammed . | . . . . . Reused . | . . . . . Traps Extracted . | . . . . . Installed . | . . . . . Triggered . | . . . . . Machines | -11 -10 -10 -9 -9 ---------- Run | Yrd Mat Min Mat Sto Machines Disabled . | . . . . . Max in Single Turn . | . . . . . Machines Repaired . | . . . . . Machines Dismantled . | . . . . . Machines Sabotaged . | . . . . . Overloaded Fab Kills . | . . . . . Hacking | -11 -10 -10 -9 -9 --------- Run | Yrd Mat Min Mat Sto Machines Accessed 1 | . . . . 1 Terminals 1 | . . . . 1 Fabricators . | . . . . . Repair Stations . | . . . . . Recycling Units . | . . . . . Scanalyzers . | . . . . . Garrison Access . | . . . . . Total Hacks 1 | . . . . 1 Successful 1 | . . . . 1 Failed . | . . . . . Catastrophic . | . . . . . Database Lockouts . | . . . . . Manual 2 | . . . . 2 Terminals 1 | . . . . 1 Fabricators . | . . . . . Repair Stations . | . . . . . Recycling Units . | . . . . . Scanalyzers . | . . . . . Garrison Access . | . . . . . Terminal Hacks 1 | . . . . 1 Open Door 1 | . . . . 1 Fabricator Hacks . | . . . . . Repair Station Hacks . | . . . . . Recycling Unit Hacks . | . . . . . Scanalyzer . | . . . . . Garrison Access Hacks . | . . . . . Unauthorized Hacks . | . . . . . Terminals . | . . . . . Fabricators . | . . . . . Repair Stations . | . . . . . Recycling Units . | . . . . . Scanalyzers . | . . . . . Garrison Access . | . . . . . Data Cores Recovered . | . . . . . Used . | . . . . . Hacking Detections . | . . . . . Full Trace Events . | . . . . . Feedback Events . | . . . . . Feedback Blocked . | . . . . . Robot Schematics Acquired . | . . . . . Robots Built . | . . . . . Authchips . | . . . . . Time . | . . . . . Total Robot Build Rating . | . . . . . Part Schematics Acquired . | . . . . . Parts Built . | . . . . . Authchips . | . . . . . Time . | . . . . . Total Part Build Rating . | . . . . . Part Studies Acquired . | . . . . . Parts Repaired . | . . . . . Time . | . . . . . Parts Recycled . | . . . . . Recycled Matter . | . . . . . Retrieved Matter . | . . . . . Retrieved Components . | . . . . . Parts Scanalyzed . | . . . . . Part Schematics Acquired . | . . . . . Parts Damaged . | . . . . . Bothacking | -11 -10 -10 -9 -9 ------------ Run | Yrd Mat Min Mat Sto Used RIF Installer . | . . . . . Robots Hacked . | . . . . . Non-combat . | . . . . . Combat . | . . . . . Robot Hacks Applied . | . . . . . Relay Couplers Released . | . . . . . Fabnet Peak Effective % . | . . . . . Robots Rewired . | . . . . . Allies Hacked . | . . . . . Hacks Repelled . | . . . . . Allies | -11 -10 -10 -9 -9 -------- Run | Yrd Mat Min Mat Sto Total Allies 2 | . . . . 2 Largest Group 2 | . . . . 2 Highest-Rated Group 62 | . . . . 62 Highest-Rated Ally 31 | . . . . 31 Total Orders . | . . . . . Ally Attacks 28 | . . . . 28 Total Damage 338 | . . . . 338 Kills 5 | . . . . 5 Allies Corrupted . | . . . . . Allies Melted . | . . . . . Intel | -11 -10 -10 -9 -9 ------- Run | Yrd Mat Min Mat Sto Active Infowar (turns) 646 | . 129 38 318 161 Optics 646 | . 129 38 318 161 Robot Analysis Total . | . . . . . Derelict Logs Recovered . | . . . . . Drone Launches . | . . . . . Drone Recoveries . | . . . . . Exploration | -11 -10 -10 -9 -9 ------------- Run | Yrd Mat Min Mat Sto Turns Passed 772 | 73 169 38 318 174 Spaces Moved 427 | 44 122 21 146 94 Core 2 | 1 . . . 1 Treads . | . . . . . Legs 425 | 43 122 21 146 93 Wheels . | . . . . . Hover . | . . . . . Flight . | . . . . . Fastest Speed 50 | 50 120 190 120 120 Average Speed 146 | 142 133 190 167 123 Slowest Speed 350 | 190 190 190 190 350 Overloaded Moves . | . . . . . Propulsion Burnouts . | . . . . . Robots Hopped . | . . . . . Potential Cave-ins . | . . . . . Cave-ins Triggered . | . . . . . Exploration Rate (%) 13 | 3 24 11 14 17 Regions Visited 4 Branch Regions 2 Pre-discovered Areas . | . . . . . Known Exits Taken . | . . . . . Unknown Exits Taken 4 | 1 1 1 1 . Scrap Searched . | . . . . . Spaces Dug . | . . . . . Terrain Destroyed 38 | . . . 38 . Melee . | . . . . . Projectile . | . . . . . AOE 38 | . . . 38 . Terrain Rammed . | . . . . . Walls Destroyed . | . . . . . Machines Disabled . | . . . . . Actions | -11 -10 -10 -9 -9 --------- Run | Yrd Mat Min Mat Sto Total 509 | 51 129 20 178 131 Wait 18 | . 1 . . 17 Move 423 | 43 121 20 145 94 Hop . | . . . . . Pick Up 5 | . 1 . 2 2 Fast Attach 13 | 6 3 . 4 . Attach 2 | . . . 1 1 Detach 4 | . 2 . 2 . Swap 4 | . . . 1 3 Drop 2 | . 1 . 1 . Fire 28 | . . . 21 7 Melee . | . . . . . Ram 1 | . . . . 1 Kick 9 | 2 . . 1 6 Crush . | . . . . . Escape Stasis . | . . . . . Rewire . | . . . . . Trap . | . . . . . Miscellaneous . | . . . . . Route ------- -11/Scrapyard -10/Materials (discovered 2 exits: [*Min] / [*Sub]) -10/Mines -9/Materials -9/Storage History --------- Turn | Location | Event 9 | -11/Scrapyard | Discovered new exit (range 16) 74 | -11/Scrapyard | Entered Materials 75 | -10/Materials | Met a group of wandering Federalists 127 | -10/Materials | Discovered new exit (range 14) 127 | -10/Materials | Discovered new exit (range 15) 243 | -10/Materials | Entered Mines 266 | -10/Mines | Discovered new exit (range 10) 281 | -10/Mines | Entered Materials 281 | -9/Materials | Evolved 2 slots: Propulsion x2 300 | -9/Materials | Build established: Mutant 545 | -9/Materials | Discovered new exit (range 11) 599 | -9/Materials | Entered Storage 628 | -9/Storage | Met a pair of Derelict thieves 755 | -9/Storage | Lost 3 parts (1p1n1w) 767 | -9/Storage | Core integrity fell below 50% 770 | -9/Storage | Core integrity fell below 20% 773 | -9/Storage | Destroyed by L-31 Rogue with Katana Last Messages --------------- System corrupted by crushing effect (+2). Assault Rifle severed. K-01 Serf collects debris. Assault Rifle severed. Acquired 34 matter. System corrupted: Component data lost. U-05 Engineer builds a Door. Kicked Y-45 Defender. Broken Aluminum Leg destroyed. Imp. Aluminum Leg destroyed. Kicked Y-45 Defender. Visual Processing Unit destroyed. System corrupted by crushing effect (+3). Kicked Y-45 Defender. M-13 Machinist repairs L-31 Rogue. System corrupted: Heat flow error (+237). Carbon-fiber Leg destroyed. Slammed into B-36 Bruiser. Destabilizing: System corrupted (+1). Critical hit (Burn: +37). Map ----- +----------------------------------------------------+ | ?????????????????????????????????????????????????? | | ?????????????????????????????????????????????????? | | ##########???????????????????????????????????????? | | #???????????????????????????????????????? | | #???????????????????????????????????????? | | #???????????????????????????????????????? | | ###### #???????????????????????????????????????? | | ?????# #???????????????????????????????????????? | | ?????# #???????????????????????????????????????? | | ?????# #???????????????????????????????????????? | | ?????# #???????????????????????????????????????? | | ?????# #???????????????????????????????????????? | | ?????# #???????????????????????????????????????? | | ?????# #???????????????????????????????????????? | | ?????# #???????????????????????????????????????? | | ?????# #???????????????????????????????????????? | | ?????# #???????????????????????????????????????? | | ?????# #??#####????????###?????????????????????? | | ###### #??#===#???????##T#######???????????????? | | !# # #??#===#???????# #???????????????? | | " # #?## #???????# ! #???????????????? | | %+% #?#T = #?#######[ l l #???????????????? | | " # #####+#### # """"m #???????????????? | | ! #T## %[%=[%[ ! # """" #???????????????? | | ! #### [ *%! %* + """"i #???????????????? | | ###??# % =%* = #@b"""" #???????????????? | | ?????#########+#### #Yl%% #???????????????? | | ???????????? % ?####### g g #???????????????? | | ??????????# #?????######## #???????????????? | | ??????????# ?????????????###???????????????? | | ??????????# #??????????????????????????????? | | ??????????# "#??????????????????????????????? | | ??????????# "%#??????????????????????????????? | | ??????????# "#??????????????????????????????? | | ??????????# #??????????????????????????????? | | ??????????# #??????????????????????????????? | | ??????????# #??????????????????????????????? | | ??????????# #??????????????????????????????? | | ??????????###+###+#??????????????????????????????? | | ?????????????????????????????????????????????????? | | ?????????????????????????????????????????????????? | | ?????????????????????????????????????????????????? | | ?????????????????????????????????????????????????? | | ?????????????????????????????????????????????????? | | ?????????????????????????????????????????????????? | | ?????????????????????????????????????????????????? | | ?????????????????????????????????????????????????? | | ?????????????????????????????????????????????????? | | ?????????????????????????????????????????????????? | | ?????????????????????????????????????????????????? | +----------------------------------------------------+ Best States ------------- Heat Dissipation 28 Energy Generation 14 Energy Capacity 280 Matter Stores 300 Matter Capacity 300 Sight Range 18 Terrain Scan Density 10 Evasion (%) 55 Item Schematics ----------------- None Robot Schematics ------------------ None Fabricated ------------ Nothing Repaired ---------- Nothing Studied --------- None Alien Tech Used ----------------- None Achievements -------------- None Challenges ------------ None Game ------ Seed MassVortexDatajack Manual? 0 Play Time 00:14:24 Cumulative 9.3 hours Start 2026.07.04 @ 19:49:58 End 2026.07.04 @ 20:05:33 Sessions 1 Manual Loads 0 Difficulty Rogue Special Mode None Game No. 11 Rogue 11 Adventurer 0 Explorer 0 Win Type - Total 0 Types 0/0/0/0/0/0/0/0/0/0 Lore% 6 Gallery% 13 Achievement% 11 Wizard Run 0 Options --------- Layout 0 ASCII 0 Keyboard 1 Movement Numpad Keybinds 0 Fullscreen 1 Font 18/SmallcapsGlow Map View 76x50 Zoom Use 0% Tactical HUD 0 Map Filters NONE Filters NONE Steam 1 RUN: cacb9b44-45a8-4b52-b7bc-dd36b4baab6f